[Event "*** Titled Tuesday Blitz"]
[Site "Chess.com"]
[Date "2019.02.05"]
[Round "3"]
[White "MFguimaraes"]
[Black "Vuks91"]
[Result "1-0"]
[WhiteElo "2297"]
[BlackElo "2416"]
[TimeControl "180+2"]
[EndTime "13:35:05 PST"]
[Termination "MFguimaraes won by resignation"]

1. e4 {[%clk 0:03:01.9]} 1... c5 {[%clk 0:03:00.2]} 2. Nf3 {[%clk 0:03:02.1]}
2... Nc6 {[%clk 0:03:01.4]} 3. d4 {[%clk 0:03:02]} 3... cxd4 {[%clk 0:03:03.3]}
4. Nxd4 {[%clk 0:03:02.7]} 4... g6 {[%clk 0:03:04.8]} 5. Nc3 {[%clk 0:02:59.5]}
5... Bg7 {[%clk 0:03:05.8]} 6. Nb3 {[%clk 0:03:00.7]} 6... Nf6 {[%clk
0:03:05.3]} 7. Be2 {[%clk 0:03:02]} 7... O-O {[%clk 0:03:06.3]} 8. O-O {[%clk
0:03:02.5]} 8... d6 {[%clk 0:03:07.1]} 9. Re1 {[%clk 0:03:03.3]} 9... a5 {[%clk
0:03:06.4]} 10. a4 {[%clk 0:03:02.8]} 10... Nb4 {[%clk 0:03:04.1]} 11. Bf3
{[%clk 0:03:02.1]} 11... Be6 {[%clk 0:02:36.5]} 12. Bg5 {[%clk 0:02:59.1]} 12...
Qc8 {[%clk 0:02:19.3]} 13. Nd4 {[%clk 0:02:54.7]} 13... Bc4 {[%clk 0:02:15.3]}
14. Qd2 {[%clk 0:02:46.8]} 14... Re8 {[%clk 0:01:59.7]} 15. b3 {[%clk
0:02:45.3]} 15... Ba6 {[%clk 0:01:56.7]} 16. Rac1 {[%clk 0:02:42.1]} 16... Nc6
{[%clk 0:01:39.2]} 17. Nxc6 {[%clk 0:02:32.8]} 17... bxc6 {[%clk 0:01:41.1]} 18.
e5 {[%clk 0:02:28.4]} 18... dxe5 {[%clk 0:01:43]} 19. Rxe5 {[%clk 0:02:28.9]}
19... Nd5 {[%clk 0:01:41.2]} 20. Nxd5 {[%clk 0:02:27]} 20... Bxe5 {[%clk
0:01:34.9]} 21. Nxe7+ {[%clk 0:02:28.1]} 21... Rxe7 {[%clk 0:01:33.2]} 22. Bxe7
{[%clk 0:02:30]} 22... Qc7 {[%clk 0:01:23.9]} 23. Bg5 {[%clk 0:02:05.3]} 23...
Bxh2+ {[%clk 0:01:24.9]} 24. Kh1 {[%clk 0:02:06.1]} 24... Be5 {[%clk 0:01:25.9]}
25. Re1 {[%clk 0:02:05.7]} 25... Bb7 {[%clk 0:00:55.6]} 26. Qe3 {[%clk
0:01:59.5]} 26... f6 {[%clk 0:00:41.3]} 27. Qc5 {[%clk 0:01:47.8]} 27... Bd6
{[%clk 0:00:21.5]} 28. Qc4+ {[%clk 0:01:46.6]} 28... Kg7 {[%clk 0:00:23]} 29.
Bd2 {[%clk 0:01:41.8]} 29... Rd8 {[%clk 0:00:23.6]} 30. Bc3 {[%clk 0:01:42.5]}
30... Be5 {[%clk 0:00:04.4]} 31. Rxe5 {[%clk 0:01:37.4]} 31... fxe5 {[%clk
0:00:06.3]} 32. Qe6 {[%clk 0:01:36.5]} 32... Qf7 {[%clk 0:00:02.1]} 33. Qxe5+
{[%clk 0:01:30.3]} 33... Kf8 {[%clk 0:00:03.5]} 34. Qxa5 {[%clk 0:01:25.5]}
34... Re8 {[%clk 0:00:04.4]} 35. Qc5+ {[%clk 0:01:22.8]} 35... Qe7 {[%clk
0:00:05.1]} 36. Qd4 {[%clk 0:01:20.6]} 36... Qe1+ {[%clk 0:00:06]} 37. Bxe1
{[%clk 0:01:20.9]} 1-0

[Event "*** Titled Tuesday Blitz"]
[Site "Chess.com"]
[Date "2019.02.05"]
[Round "3"]
[White "Blitzstream"]
[Black "Kouzari"]
[Result "0-1"]
[WhiteElo "2553"]
[BlackElo "2609"]
[TimeControl "180+2"]
[EndTime "13:35:09 PST"]
[Termination "Kouzari won by resignation"]

1. b3 {[%clk 0:03:01.9]} 1... d5 {[%clk 0:02:58.2]} 2. Bb2 {[%clk 0:03:02.8]}
2... c6 {[%clk 0:02:59.6]} 3. g3 {[%clk 0:03:03.4]} 3... Bf5 {[%clk 0:03:00.8]}
4. Bg2 {[%clk 0:03:04.5]} 4... e6 {[%clk 0:02:53.7]} 5. d3 {[%clk 0:03:05.5]}
5... Nf6 {[%clk 0:02:51.8]} 6. Nd2 {[%clk 0:03:06.6]} 6... h6 {[%clk 0:02:53]}
7. e3 {[%clk 0:03:07.5]} 7... Be7 {[%clk 0:02:53.9]} 8. Ne2 {[%clk 0:03:08.8]}
8... a5 {[%clk 0:02:54.9]} 9. a3 {[%clk 0:03:09]} 9... O-O {[%clk 0:02:53.6]}
10. h3 {[%clk 0:03:10]} 10... Nbd7 {[%clk 0:02:24.1]} 11. f4 {[%clk 0:03:09.7]}
11... Bc5 {[%clk 0:02:23]} 12. Nd4 {[%clk 0:02:39.1]} 12... Bh7 {[%clk
0:02:15.3]} 13. N2f3 {[%clk 0:02:38.7]} 13... Nh5 {[%clk 0:02:07.7]} 14. Kf2
{[%clk 0:02:36.8]} 14... Qc7 {[%clk 0:02:01.5]} 15. Ne5 {[%clk 0:02:08.3]} 15...
Nxg3 {[%clk 0:01:30.8]} 16. Kxg3 {[%clk 0:02:03.4]} 16... Nxe5 {[%clk
0:01:30.3]} 17. fxe5 {[%clk 0:02:04.9]} 17... Qxe5+ {[%clk 0:01:30.5]} 18. Kf2
{[%clk 0:02:04.6]} 18... f5 {[%clk 0:01:29.1]} 19. Qh5 {[%clk 0:01:16.4]} 19...
Rf6 {[%clk 0:01:02.4]} 20. Rhe1 {[%clk 0:00:28.9]} 20... Rg6 {[%clk 0:01:00.9]}
21. Qf3 {[%clk 0:00:24.3]} 21... f4 {[%clk 0:00:57.9]} 22. Kg1 {[%clk
0:00:21.6]} 22... Rf8 {[%clk 0:00:52.4]} 23. Rab1 {[%clk 0:00:22.3]} 23... Rg3
{[%clk 0:00:45]} 24. Ne2 {[%clk 0:00:07.1]} 24... Rxf3 {[%clk 0:00:30.1]} 25.
Bxe5 {[%clk 0:00:07.7]} 25... Rxe3 {[%clk 0:00:31.5]} 26. d4 {[%clk 0:00:09.2]}
26... Rxe5 {[%clk 0:00:32.2]} 27. dxc5 {[%clk 0:00:08.1]} 27... f3 {[%clk
0:00:33.6]} 28. Nd4 {[%clk 0:00:07.9]} 28... Rxe1+ {[%clk 0:00:34.3]} 29. Rxe1
{[%clk 0:00:09.8]} 29... f2+ {[%clk 0:00:35.8]} 0-1

[Event "*** Titled Tuesday Blitz"]
[Site "Chess.com"]
[Date "2019.02.05"]
[Round "3"]
[White "Zhuu96"]
[Black "Mikhail_Golubev"]
[Result "1-0"]
[WhiteElo "2857"]
[BlackElo "2461"]
[TimeControl "180+2"]
[EndTime "13:35:14 PST"]
[Termination "Zhuu96 won by checkmate"]

1. e4 {[%clk 0:03:01.4]} 1... c5 {[%clk 0:03:00.1]} 2. Nf3 {[%clk 0:03:02.3]}
2... d6 {[%clk 0:03:00.9]} 3. d4 {[%clk 0:03:03.5]} 3... Nf6 {[%clk 0:03:01]} 4.
Nc3 {[%clk 0:03:03.9]} 4... cxd4 {[%clk 0:03:02.1]} 5. Nxd4 {[%clk 0:03:05.1]}
5... g6 {[%clk 0:03:02.9]} 6. Be3 {[%clk 0:03:04.9]} 6... Bg7 {[%clk 0:03:03.4]}
7. f3 {[%clk 0:03:06.1]} 7... a6 {[%clk 0:03:03.4]} 8. Qd2 {[%clk 0:03:06.9]}
8... h5 {[%clk 0:03:03.7]} 9. O-O-O {[%clk 0:03:07.2]} 9... Nbd7 {[%clk
0:03:03.6]} 10. Kb1 {[%clk 0:03:02.7]} 10... Qc7 {[%clk 0:03:03.1]} 11. Rg1
{[%clk 0:02:47.9]} 11... b5 {[%clk 0:03:01.5]} 12. h3 {[%clk 0:02:43.3]} 12...
h4 {[%clk 0:02:53]} 13. g4 {[%clk 0:02:44.5]} 13... hxg3 {[%clk 0:02:52.1]} 14.
Rxg3 {[%clk 0:02:45.7]} 14... Bb7 {[%clk 0:02:45.2]} 15. Bd3 {[%clk 0:02:43.9]}
15... Rc8 {[%clk 0:02:36]} 16. h4 {[%clk 0:02:39.8]} 16... b4 {[%clk 0:02:26.5]}
17. Nce2 {[%clk 0:02:37.6]} 17... d5 {[%clk 0:02:00.9]} 18. Qxb4 {[%clk
0:02:00.6]} 18... dxe4 {[%clk 0:01:55.3]} 19. fxe4 {[%clk 0:02:01.7]} 19... Nxe4
{[%clk 0:01:54.7]} 20. Nf5 {[%clk 0:02:00]} 20... Bf6 {[%clk 0:01:41.1]} 21.
Bxe4 {[%clk 0:01:57.3]} 21... Bxe4 {[%clk 0:01:37.1]} 22. Qxe4 {[%clk
0:01:55.5]} 22... gxf5 {[%clk 0:01:36.1]} 23. Qxf5 {[%clk 0:01:56.5]} 23... e6
{[%clk 0:00:52.3]} 24. Qe4 {[%clk 0:01:49.6]} 24... Rxh4 {[%clk 0:00:43.1]} 25.
Rg8+ {[%clk 0:01:50.5]} 25... Ke7 {[%clk 0:00:43.9]} 26. Rxc8 {[%clk 0:01:51.2]}
26... Qxc8 {[%clk 0:00:38.8]} 27. Qd3 {[%clk 0:01:51.8]} 27... Qb7 {[%clk
0:00:36.1]} 28. Bc5+ {[%clk 0:01:40.3]} 28... Ke8 {[%clk 0:00:33.8]} 29. Ba3
{[%clk 0:01:41.4]} 29... Ra4 {[%clk 0:00:21.6]} 30. Rg1 {[%clk 0:01:32.4]} 30...
Be7 {[%clk 0:00:19.3]} 31. Bxe7 {[%clk 0:01:19.5]} 31... Kxe7 {[%clk 0:00:19.8]}
32. Rd1 {[%clk 0:01:18.5]} 32... Qc6 {[%clk 0:00:17.7]} 33. Nd4 {[%clk
0:01:18.9]} 33... Qd5 {[%clk 0:00:11.9]} 34. b3 {[%clk 0:01:19.7]} 34... Ra5
{[%clk 0:00:11.6]} 35. Nf5+ {[%clk 0:01:11.9]} 35... Qxf5 {[%clk 0:00:12.1]} 36.
Qxd7+ {[%clk 0:01:12.5]} 36... Kf6 {[%clk 0:00:11.4]} 37. Qd8+ {[%clk
0:01:13.3]} 37... Ke5 {[%clk 0:00:09.1]} 38. Qd4# {[%clk 0:01:13.4]} 1-0

[Event "*** Titled Tuesday Blitz"]
[Site "Chess.com"]
[Date "2019.02.05"]
[Round "3"]
[White "Redbandit87"]
[Black "alexsuper1987"]
[Result "1/2-1/2"]
[WhiteElo "2379"]
[BlackElo "2274"]
[TimeControl "180+2"]
[EndTime "13:35:15 PST"]
[Termination "Game drawn by agreement"]

1. d4 {[%clk 0:03:01.9]} 1... e6 {[%clk 0:03:00.1]} 2. Bf4 {[%clk 0:03:02.7]}
2... Nf6 {[%clk 0:03:00.8]} 3. e3 {[%clk 0:03:03.8]} 3... d5 {[%clk 0:03:01.9]}
4. Nd2 {[%clk 0:03:04.6]} 4... c5 {[%clk 0:03:03.3]} 5. c3 {[%clk 0:03:05.7]}
5... Nc6 {[%clk 0:03:04.8]} 6. Bd3 {[%clk 0:03:06.4]} 6... Bd6 {[%clk
0:03:06.2]} 7. Bxd6 {[%clk 0:03:07.6]} 7... Qxd6 {[%clk 0:03:06.9]} 8. f4 {[%clk
0:03:09.5]} 8... cxd4 {[%clk 0:03:06.5]} 9. cxd4 {[%clk 0:03:11.4]} 9... O-O
{[%clk 0:03:00.3]} 10. Ngf3 {[%clk 0:03:08.5]} 10... Bd7 {[%clk 0:03:01.2]} 11.
a3 {[%clk 0:03:09.1]} 11... Rfc8 {[%clk 0:02:59.2]} 12. Ne5 {[%clk 0:03:09.8]}
12... a6 {[%clk 0:02:52.5]} 13. O-O {[%clk 0:03:09.7]} 13... b5 {[%clk
0:02:52.8]} 14. b4 {[%clk 0:03:06.6]} 14... Ne7 {[%clk 0:02:44.2]} 15. Nb3
{[%clk 0:03:02.1]} 15... Nf5 {[%clk 0:02:42.3]} 16. Qd2 {[%clk 0:02:53.8]} 16...
Ne4 {[%clk 0:02:37.6]} 17. Bxe4 {[%clk 0:02:52.5]} 17... dxe4 {[%clk 0:02:39.5]}
18. Nc5 {[%clk 0:02:52.4]} 18... Bc6 {[%clk 0:02:34.3]} 19. Nxc6 {[%clk
0:02:48.4]} 19... Qxc6 {[%clk 0:02:33.2]} 20. Qf2 {[%clk 0:02:35]} 20... Nd6
{[%clk 0:02:29.2]} 21. Rfe1 {[%clk 0:02:29.9]} 21... a5 {[%clk 0:02:28.1]} 22.
Qc2 {[%clk 0:02:25.4]} 22... Qd5 {[%clk 0:02:21.9]} 23. Kf2 {[%clk 0:02:13.5]}
23... h6 {[%clk 0:02:20.2]} 24. Reb1 {[%clk 0:02:09.5]} 24... Qh5 {[%clk
0:01:48.6]} 25. Kg1 {[%clk 0:02:02.8]} 25... Nc4 {[%clk 0:01:49.6]} 26. Qf2
{[%clk 0:01:41.1]} 26... axb4 {[%clk 0:01:50.4]} 27. axb4 {[%clk 0:01:41.7]}
27... Qd5 {[%clk 0:01:41.2]} 28. h3 {[%clk 0:01:40.1]} 28... Na3 {[%clk
0:01:35.7]} 29. Rb2 {[%clk 0:01:36.3]} 29... Nc4 {[%clk 0:01:29.4]} 30. Rbb1
{[%clk 0:01:30.3]} 30... Na3 {[%clk 0:01:29.2]} 31. Rc1 {[%clk 0:01:29]} 31...
Nc4 {[%clk 0:01:30.2]} 32. Qe2 {[%clk 0:01:22.5]} 32... Rc7 {[%clk 0:01:24.8]}
33. Rxa8+ {[%clk 0:01:02.9]} 33... Qxa8 {[%clk 0:01:26.7]} 34. Rxc4 {[%clk
0:00:58.8]} 34... Qa1+ {[%clk 0:01:17.4]} 35. Kh2 {[%clk 0:00:59.3]} 35... bxc4
{[%clk 0:01:17.9]} 36. Qxc4 {[%clk 0:01:00.3]} 36... Qe1 {[%clk 0:01:16.7]} 37.
Qb3 {[%clk 0:00:51.4]} 37... h5 {[%clk 0:01:14.8]} 38. b5 {[%clk 0:00:50]} 38...
h4 {[%clk 0:01:16.1]} 39. b6 {[%clk 0:00:37.2]} 39... Qg3+ {[%clk 0:01:16.1]}
40. Kh1 {[%clk 0:00:38.5]} 40... Qe1+ {[%clk 0:01:16.6]} 41. Kh2 {[%clk
0:00:39.9]} 41... Qg3+ {[%clk 0:00:57.1]} 42. Kg1 {[%clk 0:00:40.8]} 1/2-1/2

[Event "*** Titled Tuesday Blitz"]
[Site "Chess.com"]
[Date "2019.02.05"]
[Round "3"]
[White "kuli4ik"]
[Black "vpsetter"]
[Result "1-0"]
[WhiteElo "2841"]
[BlackElo "2635"]
[TimeControl "180+2"]
[EndTime "13:35:20 PST"]
[Termination "kuli4ik won by resignation"]

1. Nf3 {[%clk 0:03:01.9]} 1... d5 {[%clk 0:02:59.9]} 2. d4 {[%clk 0:03:02.8]}
2... Nf6 {[%clk 0:03:00.6]} 3. Bf4 {[%clk 0:03:04.1]} 3... c5 {[%clk 0:03:01.1]}
4. dxc5 {[%clk 0:03:06]} 4... e6 {[%clk 0:02:53.9]} 5. e3 {[%clk 0:03:06.7]}
5... Nc6 {[%clk 0:02:49.4]} 6. Be2 {[%clk 0:03:08.6]} 6... Bxc5 {[%clk
0:02:45.8]} 7. O-O {[%clk 0:03:09.6]} 7... O-O {[%clk 0:02:46.7]} 8. c4 {[%clk
0:03:11.1]} 8... b6 {[%clk 0:02:32.2]} 9. Nc3 {[%clk 0:03:07.8]} 9... dxc4
{[%clk 0:02:29.9]} 10. Bxc4 {[%clk 0:03:05.1]} 10... Bb7 {[%clk 0:02:29]} 11.
Qe2 {[%clk 0:03:04.7]} 11... Qe7 {[%clk 0:02:23.9]} 12. Bg5 {[%clk 0:03:05.8]}
12... h6 {[%clk 0:02:18.5]} 13. Bh4 {[%clk 0:03:06.9]} 13... g5 {[%clk
0:02:18.3]} 14. Bg3 {[%clk 0:03:02.8]} 14... a6 {[%clk 0:01:55.8]} 15. Na4
{[%clk 0:02:53.1]} 15... Ne4 {[%clk 0:01:45.6]} 16. Nxc5 {[%clk 0:02:53.9]}
16... Nxg3 {[%clk 0:01:41.4]} 17. hxg3 {[%clk 0:02:53.1]} 17... Qxc5 {[%clk
0:01:42.3]} 18. Rac1 {[%clk 0:02:54.3]} 18... Qe7 {[%clk 0:01:40.7]} 19. Bd3
{[%clk 0:02:51.4]} 19... g4 {[%clk 0:01:23.6]} 20. Nd2 {[%clk 0:02:02.7]} 20...
Ne5 {[%clk 0:01:24.1]} 21. Nc4 {[%clk 0:02:01.3]} 21... Nxd3 {[%clk 0:00:44.9]}
22. Qxd3 {[%clk 0:02:02.2]} 22... b5 {[%clk 0:00:32.9]} 23. Ne5 {[%clk
0:01:51.9]} 23... Qg5 {[%clk 0:00:33.6]} 24. Qd4 {[%clk 0:01:43.6]} 24... Rfd8
{[%clk 0:00:26.2]} 25. Qxg4 {[%clk 0:01:33.8]} 25... Qxg4 {[%clk 0:00:27.3]} 26.
Nxg4 {[%clk 0:01:34.7]} 26... Rd2 {[%clk 0:00:28.7]} 27. Rc7 {[%clk 0:01:31.3]}
27... Bd5 {[%clk 0:00:27.5]} 28. Nxh6+ {[%clk 0:01:28.2]} 28... Kg7 {[%clk
0:00:26.2]} 29. Nxf7 {[%clk 0:01:28]} 29... Rxb2 {[%clk 0:00:22.7]} 30. a3
{[%clk 0:01:26.4]} 30... Kf6 {[%clk 0:00:20.9]} 31. g4 {[%clk 0:01:10.2]} 31...
e5 {[%clk 0:00:19.4]} 32. g5+ {[%clk 0:01:03.7]} 32... Ke6 {[%clk 0:00:20.4]}
33. Rd1 {[%clk 0:00:59.2]} 33... Bc4 {[%clk 0:00:06.7]} 34. e4 {[%clk
0:00:52.9]} 1-0

[Event "*** Titled Tuesday Blitz"]
[Site "Chess.com"]
[Date "2019.02.05"]
[Round "3"]
[White "1e41-0"]
[Black "DrVelja"]
[Result "1-0"]
[WhiteElo "2551"]
[BlackElo "2617"]
[TimeControl "180+2"]
[EndTime "13:35:20 PST"]
[Termination "1e41-0 won by resignation"]

1. e4 {[%clk 0:02:50.2]} 1... c5 {[%clk 0:03:00]} 2. Nf3 {[%clk 0:02:50.4]} 2...
d6 {[%clk 0:03:01.6]} 3. d4 {[%clk 0:02:50.4]} 3... cxd4 {[%clk 0:03:03.5]} 4.
Nxd4 {[%clk 0:02:52.1]} 4... Nf6 {[%clk 0:03:05.4]} 5. Nc3 {[%clk 0:02:53.5]}
5... a6 {[%clk 0:03:07]} 6. h3 {[%clk 0:02:54.5]} 6... e6 {[%clk 0:03:06]} 7. g4
{[%clk 0:02:55.3]} 7... Nfd7 {[%clk 0:03:07.7]} 8. Bg2 {[%clk 0:02:56.6]} 8...
Be7 {[%clk 0:03:08.9]} 9. O-O {[%clk 0:02:58.1]} 9... Nc6 {[%clk 0:03:08.8]} 10.
Be3 {[%clk 0:02:59.5]} 10... h5 {[%clk 0:03:08.1]} 11. g5 {[%clk 0:02:52.4]}
11... Nce5 {[%clk 0:02:52.5]} 12. Qe2 {[%clk 0:02:43.5]} 12... Qc7 {[%clk
0:02:40.3]} 13. Rad1 {[%clk 0:01:52.1]} 13... Qc4 {[%clk 0:02:27.6]} 14. Qe1
{[%clk 0:01:45.7]} 14... O-O {[%clk 0:02:21.6]} 15. f4 {[%clk 0:01:46]} 15...
Nc6 {[%clk 0:02:13.8]} 16. Bf3 {[%clk 0:01:45.8]} 16... g6 {[%clk 0:02:09.1]}
17. Be2 {[%clk 0:01:38.7]} 17... Qb4 {[%clk 0:02:05.4]} 18. Nxc6 {[%clk
0:01:39.7]} 18... bxc6 {[%clk 0:02:06.5]} 19. Nd5 {[%clk 0:01:41.3]} 19... Qxe4
{[%clk 0:02:08.1]} 20. Nxe7+ {[%clk 0:01:42.1]} 20... Kh7 {[%clk 0:02:09.5]} 21.
Bf3 {[%clk 0:01:43.1]} 21... Qxc2 {[%clk 0:02:10.4]} 22. Rf2 {[%clk 0:01:31.4]}
22... Qc4 {[%clk 0:02:10]} 23. Rc1 {[%clk 0:01:26.6]} 23... Qxa2 {[%clk
0:02:09.9]} 24. Bxc6 {[%clk 0:01:23.8]} 24... Rb8 {[%clk 0:02:09.1]} 25. Nxc8
{[%clk 0:01:25]} 25... Rfxc8 {[%clk 0:01:59.3]} 26. Bxd7 {[%clk 0:01:25.9]}
26... Rxc1 {[%clk 0:02:01.2]} 27. Qxc1 {[%clk 0:01:26.6]} 27... Qd5 {[%clk
0:01:56.3]} 28. Qc7 {[%clk 0:01:06.5]} 28... Qd1+ {[%clk 0:01:50.8]} 29. Kh2
{[%clk 0:01:06.8]} 29... Qd3 {[%clk 0:01:29.4]} 30. Bb6 {[%clk 0:00:32.8]} 30...
h4 {[%clk 0:01:11.6]} 31. Bxe6 {[%clk 0:00:27.8]} 31... Rf8 {[%clk 0:01:09.4]}
32. Bg4 {[%clk 0:00:21]} 32... Qg3+ {[%clk 0:01:09.9]} 33. Kh1 {[%clk
0:00:22.6]} 33... Kg8 {[%clk 0:01:10.6]} 34. f5 {[%clk 0:00:22]} 34... Re8
{[%clk 0:01:11.6]} 35. Qc1 {[%clk 0:00:20.2]} 35... gxf5 {[%clk 0:01:09.3]} 36.
Bxf5 {[%clk 0:00:19.1]} 36... Re5 {[%clk 0:01:10.7]} 37. g6 {[%clk 0:00:15.7]}
37... Rxf5 {[%clk 0:01:11.1]} 38. Qc8+ {[%clk 0:00:16.3]} 38... Kg7 {[%clk
0:01:10.6]} 39. Qxf5 {[%clk 0:00:18.2]} 39... fxg6 {[%clk 0:01:12]} 40. Bd4+
{[%clk 0:00:18.9]} 40... Kh7 {[%clk 0:01:13]} 41. Qf7+ {[%clk 0:00:20]} 41...
Kh6 {[%clk 0:01:14.7]} 42. Qg7+ {[%clk 0:00:21]} 42... Kg5 {[%clk 0:01:15.6]}
43. Qf6+ {[%clk 0:00:21.7]} 43... Kh6 {[%clk 0:01:16.3]} 44. Qf4+ {[%clk
0:00:23]} 1-0

[Event "*** Titled Tuesday Blitz"]
[Site "Chess.com"]
[Date "2019.02.05"]
[Round "3"]
[White "NateSolon"]
[Black "KazakhFighter04"]
[Result "1/2-1/2"]
[WhiteElo "2530"]
[BlackElo "2649"]
[TimeControl "180+2"]
[EndTime "13:35:27 PST"]
[Termination "Game drawn by repetition"]

1. d4 {[%clk 0:03:01.9]} 1... Nf6 {[%clk 0:02:55.2]} 2. Bg5 {[%clk 0:03:02.5]}
2... Ne4 {[%clk 0:02:53]} 3. Bf4 {[%clk 0:03:03.5]} 3... c5 {[%clk 0:02:53.7]}
4. f3 {[%clk 0:03:02.1]} 4... Qa5+ {[%clk 0:02:54.8]} 5. c3 {[%clk 0:03:03]}
5... Nf6 {[%clk 0:02:56]} 6. Nd2 {[%clk 0:03:02.9]} 6... cxd4 {[%clk 0:02:45.6]}
7. Nb3 {[%clk 0:03:03.5]} 7... Qf5 {[%clk 0:02:38.3]} 8. Bxb8 {[%clk 0:02:54.3]}
8... Rxb8 {[%clk 0:02:40.2]} 9. Qxd4 {[%clk 0:02:55.2]} 9... b6 {[%clk
0:02:40.3]} 10. e4 {[%clk 0:02:52.3]} 10... Qf4 {[%clk 0:02:39]} 11. Ne2 {[%clk
0:02:40.1]} 11... Qc7 {[%clk 0:02:36.9]} 12. e5 {[%clk 0:02:32.4]} 12... Ng8
{[%clk 0:02:19.6]} 13. Nf4 {[%clk 0:02:28.6]} 13... e6 {[%clk 0:02:19.7]} 14.
O-O-O {[%clk 0:02:26.3]} 14... Ne7 {[%clk 0:02:15.4]} 15. Nd3 {[%clk 0:02:01.8]}
15... Nc6 {[%clk 0:02:12.2]} 16. Qe3 {[%clk 0:02:02]} 16... d5 {[%clk
0:02:08.8]} 17. Kb1 {[%clk 0:01:56.8]} 17... Na5 {[%clk 0:02:01.4]} 18. Nxa5
{[%clk 0:01:24.3]} 18... bxa5 {[%clk 0:02:03.3]} 19. Ka1 {[%clk 0:01:25.4]}
19... Be7 {[%clk 0:02:01.3]} 20. f4 {[%clk 0:01:26.2]} 20... Qb6 {[%clk
0:02:01]} 21. Qxb6 {[%clk 0:01:24]} 21... axb6 {[%clk 0:02:01]} 22. Ne1 {[%clk
0:01:19.4]} 22... b5 {[%clk 0:02:00.3]} 23. Nf3 {[%clk 0:01:12.4]} 23... h5
{[%clk 0:01:59.9]} 24. Nd4 {[%clk 0:01:13.5]} 24... Bd7 {[%clk 0:02:00.2]} 25.
Be2 {[%clk 0:01:10.3]} 25... g6 {[%clk 0:02:00.4]} 26. g3 {[%clk 0:01:09.9]}
26... O-O {[%clk 0:01:56.7]} 27. h3 {[%clk 0:01:10.9]} 27... b4 {[%clk
0:01:52.2]} 28. cxb4 {[%clk 0:01:12.2]} 28... axb4 {[%clk 0:01:54.1]} 29. g4
{[%clk 0:01:12.1]} 29... hxg4 {[%clk 0:01:54.7]} 30. hxg4 {[%clk 0:01:14]} 30...
Ra8 {[%clk 0:01:34.7]} 31. f5 {[%clk 0:01:11.5]} 31... Ra7 {[%clk 0:01:35]} 32.
f6 {[%clk 0:01:05.9]} 32... Bc5 {[%clk 0:01:33.9]} 33. Nb3 {[%clk 0:01:00.1]}
33... Rfa8 {[%clk 0:00:48.8]} 34. Nxc5 {[%clk 0:01:00.7]} 34... Rxa2+ {[%clk
0:00:49.1]} 35. Kb1 {[%clk 0:01:02.3]} 35... Ra1+ {[%clk 0:00:51]} 36. Kc2
{[%clk 0:01:03.1]} 36... Rxd1 {[%clk 0:00:52]} 37. Kxd1 {[%clk 0:00:52.4]} 37...
Ra1+ {[%clk 0:00:49.5]} 38. Kd2 {[%clk 0:00:53.7]} 38... Rxh1 {[%clk 0:00:50.2]}
39. Nxd7 {[%clk 0:00:55]} 39... Rb1 {[%clk 0:00:49.7]} 40. Kc2 {[%clk
0:00:53.5]} 40... Re1 {[%clk 0:00:49.4]} 41. Kd2 {[%clk 0:00:54.2]} 41... Rb1
{[%clk 0:00:49.1]} 42. Kc2 {[%clk 0:00:55.2]} 42... Re1 {[%clk 0:00:49.8]} 43.
Kd2 {[%clk 0:00:43.6]} 43... Rb1 {[%clk 0:00:41.1]} 44. Kc2 {[%clk 0:00:44.3]}
1/2-1/2

[Event "*** Titled Tuesday Blitz"]
[Site "Chess.com"]
[Date "2019.02.05"]
[Round "3"]
[White "AlexTriapishko"]
[Black "jsdbv18"]
[Result "0-1"]
[WhiteElo "2742"]
[BlackElo "2481"]
[TimeControl "180+2"]
[EndTime "13:35:34 PST"]
[Termination "jsdbv18 won by resignation"]

1. e4 {[%clk 0:02:55]} 1... c5 {[%clk 0:03:01.5]} 2. Nf3 {[%clk 0:02:54.7]} 2...
d6 {[%clk 0:03:02.7]} 3. d4 {[%clk 0:02:55.1]} 3... cxd4 {[%clk 0:03:04.6]} 4.
Nxd4 {[%clk 0:02:56.1]} 4... Nf6 {[%clk 0:03:06.1]} 5. f3 {[%clk 0:02:57.7]}
5... e5 {[%clk 0:03:06.1]} 6. Nb3 {[%clk 0:02:57.5]} 6... Nc6 {[%clk 0:03:04.5]}
7. c4 {[%clk 0:02:57.7]} 7... Be7 {[%clk 0:03:05.4]} 8. Nc3 {[%clk 0:02:52]}
8... O-O {[%clk 0:03:06.8]} 9. Be3 {[%clk 0:02:53.5]} 9... Be6 {[%clk
0:03:07.9]} 10. Rc1 {[%clk 0:02:53.3]} 10... a5 {[%clk 0:03:06.2]} 11. Na4
{[%clk 0:02:46.2]} 11... Nd7 {[%clk 0:03:02.8]} 12. Be2 {[%clk 0:02:43.3]} 12...
Bg5 {[%clk 0:03:03.1]} 13. Qd2 {[%clk 0:02:41.1]} 13... Bxe3 {[%clk 0:03:04.1]}
14. Qxe3 {[%clk 0:02:43]} 14... Qh4+ {[%clk 0:03:03.6]} 15. g3 {[%clk
0:02:43.3]} 15... Qe7 {[%clk 0:03:04.7]} 16. O-O {[%clk 0:02:42.3]} 16... f5
{[%clk 0:03:03.9]} 17. c5 {[%clk 0:02:28.2]} 17... f4 {[%clk 0:02:55.5]} 18.
cxd6 {[%clk 0:02:18.5]} 18... Qg5 {[%clk 0:02:56.1]} 19. Qf2 {[%clk 0:02:15.5]}
19... fxg3 {[%clk 0:02:54.3]} 20. Qxg3 {[%clk 0:02:10.8]} 20... Qh6 {[%clk
0:02:55.2]} 21. Nac5 {[%clk 0:02:01.9]} 21... Nxc5 {[%clk 0:02:55.7]} 22. Nxc5
{[%clk 0:02:00.6]} 22... Nd4 {[%clk 0:02:57.1]} 23. Qf2 {[%clk 0:01:37.3]} 23...
Bh3 {[%clk 0:02:54.3]} 24. Rfd1 {[%clk 0:01:02.8]} 24... Rf6 {[%clk 0:02:51.9]}
25. Kh1 {[%clk 0:01:03.8]} 25... Rg6 {[%clk 0:02:51.7]} 26. Bf1 {[%clk
0:00:54.5]} 26... Rf8 {[%clk 0:02:45.7]} 27. Rc3 {[%clk 0:00:54.7]} 27... Rxd6
{[%clk 0:02:41.6]} 28. Bxh3 {[%clk 0:00:46.2]} 28... Qxh3 {[%clk 0:02:42]} 29.
f4 {[%clk 0:00:47.7]} 29... Qh5 {[%clk 0:02:34.9]} 30. Rcd3 {[%clk 0:00:39.8]}
30... Rxf4 {[%clk 0:02:35.8]} 31. Qd2 {[%clk 0:00:20.8]} 31... Rg6 {[%clk
0:02:33.1]} 32. Nd7 {[%clk 0:00:10.3]} 32... Rxe4 {[%clk 0:02:21.7]} 33. Rf1
{[%clk 0:00:10.9]} 33... h6 {[%clk 0:02:13.7]} 34. Qc1 {[%clk 0:00:08.2]} 34...
Rc6 {[%clk 0:02:11.5]} 35. Rf8+ {[%clk 0:00:07.6]} 35... Kh7 {[%clk 0:02:11.8]}
36. Qg1 {[%clk 0:00:08.4]} 36... Rf4 {[%clk 0:01:59.7]} 37. Rg3 {[%clk
0:00:03.2]} 37... Ne6 {[%clk 0:01:43.5]} 38. Rxf4 {[%clk 0:00:03.4]} 38... exf4
{[%clk 0:01:41.3]} 39. Nf8+ {[%clk 0:00:04.8]} 39... Kg8 {[%clk 0:01:37.8]} 40.
Nxe6 {[%clk 0:00:03.2]} 40... fxg3 {[%clk 0:01:38.2]} 41. Nf4 {[%clk 0:00:04.6]}
41... Qf3+ {[%clk 0:01:38.5]} 42. Ng2 {[%clk 0:00:05.5]} 42... gxh2 {[%clk
0:01:35]} 43. Qe1 {[%clk 0:00:07]} 43... Rg6 {[%clk 0:01:32.6]} 44. Qe8+ {[%clk
0:00:05.4]} 44... Kh7 {[%clk 0:01:33.3]} 45. Qxg6+ {[%clk 0:00:07.3]} 45... Kxg6
{[%clk 0:01:33.8]} 46. Kxh2 {[%clk 0:00:07.3]} 46... Qxg2+ {[%clk 0:01:33.9]}
47. Kxg2 {[%clk 0:00:08.4]} 47... Kf5 {[%clk 0:01:35.4]} 0-1